[Event "Titled Tuesday Blitz June 6 Early 2023"]
[White "Orlov, Georgi"]
[Black "Sychev, Klementy"]
[WhiteFideId "2011271"]
[BlackFideId "4114060"]
[WhiteElo "2641"]
[BlackElo "2583"]
[Result "0-1"]
[Round "10"]
[TimeControl "180+2"]
[Date "2023.06.06"]
[WhiteClock "0:00:14"]
[BlackClock "0:00:05"]
[Board "36"]

1. d4 {[%clk 0:03:00]}  g6 {[%clk 0:02:58]} 2. Nf3 {[%clk 0:03:00]}  Bg7 {[%clk 0:02:58]} 3. e4 {[%clk 0:03:01]}  d6 {[%clk 0:02:58]} 4. Be2 {[%clk 0:03:01]}  Nf6 {[%clk 0:02:58]} 5. Nc3 {[%clk 0:03:00]}  O-O {[%clk 0:02:58]} 6. O-O {[%clk 0:03:00]}  a6 {[%clk 0:02:59]} 7. h3 {[%clk 0:02:58]}  Nc6 {[%clk 0:02:57]} 8. Bg5 {[%clk 0:02:54]}  h6 {[%clk 0:02:56]} 9. Be3 {[%clk 0:02:53]}  e5 {[%clk 0:02:56]} 10. Qd2 {[%clk 0:02:44]}  Kh7 {[%clk 0:02:51]} 11. Rad1 {[%clk 0:02:40]}  exd4 {[%clk 0:02:51]} 12. Nxd4 {[%clk 0:02:39]}  Bd7 {[%clk 0:02:51]} 13. f4 {[%clk 0:02:33]}  Re8 {[%clk 0:02:49]} 14. Bf3 {[%clk 0:02:33]}  Rb8 {[%clk 0:02:25]} 15. Qf2 {[%clk 0:02:31]}  Ng8 {[%clk 0:02:11]} 16. Nb3 {[%clk 0:01:56]}  Qc8 {[%clk 0:02:05]} 17. g4 {[%clk 0:01:49]}  Be6 {[%clk 0:01:46]} 18. f5 {[%clk 0:01:41]}  Bc4 {[%clk 0:01:46]} 19. Rfe1 {[%clk 0:01:41]}  Ne5 {[%clk 0:01:46]} 20. Bg2 {[%clk 0:01:39]}  Nf6 {[%clk 0:01:45]} 21. Qg3 {[%clk 0:01:20]}  b5 {[%clk 0:01:35]} 22. Na5 {[%clk 0:01:03]}  b4 {[%clk 0:01:29]} 23. Nd5 {[%clk 0:01:02]}  Bxd5 {[%clk 0:01:13]} 24. exd5 {[%clk 0:00:57]}  gxf5 {[%clk 0:01:13]} 25. gxf5 {[%clk 0:00:47]}  Qxf5 {[%clk 0:01:10]} 26. Rf1 {[%clk 0:00:47]}  Qxc2 {[%clk 0:00:40]} 27. Rc1 {[%clk 0:00:42]}  Qxb2 {[%clk 0:00:40]} 28. Rxc7 {[%clk 0:00:40]}  Qxa2 {[%clk 0:00:36]} 29. Nc6 {[%clk 0:00:37]}  Nxc6 {[%clk 0:00:25]} 30. dxc6 {[%clk 0:00:36]}  Qb3 {[%clk 0:00:20]} 31. Rf3 {[%clk 0:00:31]}  Qb1+ {[%clk 0:00:19]} 32. Bf1 {[%clk 0:00:24]}  Qg6 {[%clk 0:00:18]} 33. Bc4 {[%clk 0:00:22]}  d5 {[%clk 0:00:16]} 34. Qxg6+ {[%clk 0:00:20]}  Kxg6 {[%clk 0:00:11]} 35. Rg3+ {[%clk 0:00:21]}  Kh5 {[%clk 0:00:06]} 36. Be2+ {[%clk 0:00:19]}  Kh4 {[%clk 0:00:06]} 37. Kh2 {[%clk 0:00:18]}  Rxe3 {[%clk 0:00:06]} 38. Rxe3 {[%clk 0:00:18]}  Ne4 {[%clk 0:00:06]} 39. Rf3 {[%clk 0:00:17]}  Be5+ {[%clk 0:00:06]} 40. Kg2 {[%clk 0:00:18]}  Bxc7 {[%clk 0:00:06]} 41. Rxf7 {[%clk 0:00:18]}  Rg8+ {[%clk 0:00:07]} 42. Kf1 {[%clk 0:00:17]}  Ng3+ {[%clk 0:00:06]} 43. Ke1 {[%clk 0:00:17]}  Nxe2 {[%clk 0:00:06]} 44. Rxc7 {[%clk 0:00:17]}  Nd4 {[%clk 0:00:05]} 45. Rd7 {[%clk 0:00:16]}  Nxc6 {[%clk 0:00:04]} 46. Rxd5 {[%clk 0:00:16]}  Rb8 {[%clk 0:00:05]} 47. Rc5 {[%clk 0:00:16]}  Ne5 {[%clk 0:00:04]} 48. Rxe5 {[%clk 0:00:16]}  b3 {[%clk 0:00:05]} 49. Re4+ {[%clk 0:00:14]}  Kxh3 {[%clk 0:00:05]} 50. Re3+ {[%clk 0:00:15]}  Kg4 {[%clk 0:00:05]} 51. Kf2 {[%clk 0:00:13]}  b2 {[%clk 0:00:05]} 52. Rg3+ {[%clk 0:00:14]}  Kf4 {[%clk 0:00:05]} 0-1


[Site "https://www.chess.com"]

[Event "Titled Tuesday Blitz June 6 Early 2023"]
[White "Malyi, Viacheslav"]
[Black "splendidkid"]
[WhiteFideId "14123983"]
[WhiteElo "2291"]
[BlackElo "2747"]
[Result "0-1"]
[Round "10"]
[TimeControl "180+2"]
[Date "2023.06.06"]
[WhiteClock "0:01:44"]
[BlackClock "0:01:35"]
[Board "41"]

1. e4 {[%clk 0:02:58]}  c5 {[%clk 0:02:58]} 2. Nf3 {[%clk 0:02:58]}  d6 {[%clk 0:02:58]} 3. d4 {[%clk 0:02:58]}  cxd4 {[%clk 0:02:59]} 4. Nxd4 {[%clk 0:02:59]}  Nf6 {[%clk 0:03:00]} 5. Nc3 {[%clk 0:03:00]}  a6 {[%clk 0:03:00]} 6. Bg5 {[%clk 0:03:01]}  e6 {[%clk 0:03:00]} 7. f4 {[%clk 0:03:01]}  Be7 {[%clk 0:03:01]} 8. Qf3 {[%clk 0:03:02]}  Qc7 {[%clk 0:03:01]} 9. O-O-O {[%clk 0:03:02]}  Nbd7 {[%clk 0:03:02]} 10. Bd3 {[%clk 0:03:02]}  b5 {[%clk 0:03:02]} 11. e5 {[%clk 0:02:54]}  Bb7 {[%clk 0:03:00]} 12. Qh3 {[%clk 0:02:50]}  dxe5 {[%clk 0:02:59]} 13. Nxe6 {[%clk 0:02:40]}  fxe6 {[%clk 0:02:58]} 14. Qxe6 {[%clk 0:02:40]}  Nc5 {[%clk 0:02:54]} 15. Qh3 {[%clk 0:02:25]}  Nxd3+ {[%clk 0:02:51]} 16. Rxd3 {[%clk 0:02:26]}  e4 {[%clk 0:02:47]} 17. Rd2 {[%clk 0:02:18]}  b4 {[%clk 0:02:42]} 18. Na4 {[%clk 0:02:16]}  O-O {[%clk 0:02:36]} 19. Qe6+ {[%clk 0:02:12]}  Kh8 {[%clk 0:02:30]} 20. Nb6 {[%clk 0:02:09]}  Rae8 {[%clk 0:02:21]} 21. Nd7 {[%clk 0:02:04]}  e3 {[%clk 0:02:13]} 22. Rd3 {[%clk 0:02:00]}  e2 {[%clk 0:01:50]} 23. Re1 {[%clk 0:01:51]}  Nxd7 {[%clk 0:01:36]} 24. Rxd7 {[%clk 0:01:49]}  Bxg5 {[%clk 0:01:36]} 25. fxg5 {[%clk 0:01:44]}  Qf4+ {[%clk 0:01:35]} 0-1


[Site "https://www.chess.com"]

[Event "Titled Tuesday Blitz June 6 Early 2023"]
[White "Quintiliano Pinto, Renato R."]
[Black "Omelja, Artem"]
[WhiteFideId "2117568"]
[BlackFideId "14119846"]
[WhiteElo "2459"]
[BlackElo "2404"]
[Result "1-0"]
[Round "10"]
[TimeControl "180+2"]
[Date "2023.06.06"]
[WhiteClock "0:00:22"]
[BlackClock "0:00:03"]
[Board "42"]

1. d4 {[%clk 0:03:00]}  Nf6 {[%clk 0:02:56]} 2. c4 {[%clk 0:03:00]}  e6 {[%clk 0:02:54]} 3. Nf3 {[%clk 0:02:59]}  b6 {[%clk 0:02:54]} 4. e3 {[%clk 0:02:57]}  Bb7 {[%clk 0:02:54]} 5. Bd3 {[%clk 0:02:57]}  Be7 {[%clk 0:02:54]} 6. O-O {[%clk 0:02:57]}  O-O {[%clk 0:02:55]} 7. b3 {[%clk 0:02:57]}  c5 {[%clk 0:02:56]} 8. Bb2 {[%clk 0:02:56]}  d5 {[%clk 0:02:56]} 9. cxd5 {[%clk 0:02:56]}  Nxd5 {[%clk 0:02:51]} 10. dxc5 {[%clk 0:02:53]}  Bxc5 {[%clk 0:02:51]} 11. a3 {[%clk 0:02:52]}  Nd7 {[%clk 0:02:45]} 12. Nbd2 {[%clk 0:02:47]}  N7f6 {[%clk 0:02:40]} 13. Qb1 {[%clk 0:02:42]}  h6 {[%clk 0:02:39]} 14. b4 {[%clk 0:02:38]}  Be7 {[%clk 0:02:39]} 15. Rd1 {[%clk 0:02:37]}  Rc8 {[%clk 0:02:36]} 16. Ne4 {[%clk 0:02:35]}  Qe8 {[%clk 0:02:16]} 17. Be5 {[%clk 0:02:13]}  Nxe4 {[%clk 0:01:57]} 18. Bxe4 {[%clk 0:02:12]}  Qa4 {[%clk 0:01:51]} 19. Qb2 {[%clk 0:02:05]}  f6 {[%clk 0:01:37]} 20. Bd4 {[%clk 0:01:56]}  Rfd8 {[%clk 0:01:36]} 21. Qa2 {[%clk 0:01:02]}  Qc6 {[%clk 0:01:17]} 22. Qd2 {[%clk 0:00:55]}  Ba6 {[%clk 0:01:04]} 23. Rac1 {[%clk 0:00:46]}  Qa4 {[%clk 0:00:59]} 24. Qb2 {[%clk 0:00:44]}  Rc4 {[%clk 0:00:47]} 25. Rxc4 {[%clk 0:00:40]}  Bxc4 {[%clk 0:00:48]} 26. Bc2 {[%clk 0:00:39]}  Qa6 {[%clk 0:00:45]} 27. Bb1 {[%clk 0:00:33]}  Rc8 {[%clk 0:00:39]} 28. h4 {[%clk 0:00:24]}  Be2 {[%clk 0:00:34]} 29. Rc1 {[%clk 0:00:23]}  Rxc1+ {[%clk 0:00:33]} 30. Qxc1 {[%clk 0:00:23]}  Qc4 {[%clk 0:00:33]} 31. Qxc4 {[%clk 0:00:21]}  Bxc4 {[%clk 0:00:33]} 32. Nd2 {[%clk 0:00:21]}  Ba6 {[%clk 0:00:31]} 33. g3 {[%clk 0:00:21]}  Kf8 {[%clk 0:00:31]} 34. e4 {[%clk 0:00:19]}  Nc7 {[%clk 0:00:29]} 35. f3 {[%clk 0:00:20]}  e5 {[%clk 0:00:29]} 36. Bb2 {[%clk 0:00:20]}  Bb5 {[%clk 0:00:24]} 37. Kf2 {[%clk 0:00:20]}  a5 {[%clk 0:00:24]} 38. bxa5 {[%clk 0:00:21]}  bxa5 {[%clk 0:00:24]} 39. Nb3 {[%clk 0:00:21]}  a4 {[%clk 0:00:24]} 40. Nd2 {[%clk 0:00:21]}  Bc5+ {[%clk 0:00:24]} 41. Kg2 {[%clk 0:00:21]}  Ne6 {[%clk 0:00:24]} 42. Ba2 {[%clk 0:00:21]}  Nd4 {[%clk 0:00:23]} 43. Bc4 {[%clk 0:00:21]}  Bc6 {[%clk 0:00:21]} 44. Bd3 {[%clk 0:00:20]}  Ke7 {[%clk 0:00:20]} 45. Nc4 {[%clk 0:00:20]}  Be8 {[%clk 0:00:14]} 46. f4 {[%clk 0:00:20]}  exf4 {[%clk 0:00:13]} 47. gxf4 {[%clk 0:00:21]}  Bf7 {[%clk 0:00:13]} 48. Ne3 {[%clk 0:00:20]}  g6 {[%clk 0:00:08]} 49. h5 {[%clk 0:00:20]}  Nb3 {[%clk 0:00:08]} 50. hxg6 {[%clk 0:00:19]}  Bxg6 {[%clk 0:00:08]} 51. Nd5+ {[%clk 0:00:20]}  Kd6 {[%clk 0:00:08]} 52. Nxf6 {[%clk 0:00:20]}  Bf7 {[%clk 0:00:08]} 53. e5+ {[%clk 0:00:20]}  Ke7 {[%clk 0:00:08]} 54. Ne4 {[%clk 0:00:19]}  Be3 {[%clk 0:00:09]} 55. Kf3 {[%clk 0:00:19]}  Bb6 {[%clk 0:00:06]} 56. f5 {[%clk 0:00:20]}  Bh5+ {[%clk 0:00:06]} 57. Kf4 {[%clk 0:00:20]}  Bd1 {[%clk 0:00:04]} 58. f6+ {[%clk 0:00:21]}  Kf8 {[%clk 0:00:03]} 59. Bc4 {[%clk 0:00:20]}  Bc7 {[%clk 0:00:04]} 60. Kf5 {[%clk 0:00:20]}  Bc2 {[%clk 0:00:02]} 61. e6 {[%clk 0:00:20]}  Nc5 {[%clk 0:00:02]} 62. e7+ {[%clk 0:00:20]}  Ke8 {[%clk 0:00:02]} 63. Bb5+ {[%clk 0:00:21]}  Nd7 {[%clk 0:00:03]} 64. Ke6 {[%clk 0:00:17]}  Bb3+ {[%clk 0:00:03]} 65. Kf5 {[%clk 0:00:18]}  Bc2 {[%clk 0:00:03]} 66. Bc6 {[%clk 0:00:19]}  Bb8 {[%clk 0:00:03]} 67. Ke6 {[%clk 0:00:19]}  Bb3+ {[%clk 0:00:03]} 68. Bd5 {[%clk 0:00:20]}  Bxd5+ {[%clk 0:00:03]} 69. Kxd5 {[%clk 0:00:20]}  Kf7 {[%clk 0:00:03]} 70. Kc6 {[%clk 0:00:21]}  Ne5+ {[%clk 0:00:02]} 71. Bxe5 {[%clk 0:00:21]}  Bxe5 {[%clk 0:00:03]} 72. Kd7 {[%clk 0:00:22]} 1-0


[Site "https://www.chess.com"]

[Event "Titled Tuesday Blitz June 6 Early 2023"]
[White "De La Colina, Nicolas"]
[Black "Hajiyev, Kanan"]
[WhiteFideId "30946921"]
[BlackFideId "13404148"]
[WhiteElo "2046"]
[BlackElo "2115"]
[Result "1-0"]
[Round "10"]
[TimeControl "180+2"]
[Date "2023.06.06"]
[WhiteClock "0:00:11"]
[BlackClock "0:00:03"]
[Board "44"]

1. e4 {[%clk 0:02:44]}  c6 {[%clk 0:02:55]} 2. d4 {[%clk 0:02:41]}  d5 {[%clk 0:02:56]} 3. exd5 {[%clk 0:02:41]}  cxd5 {[%clk 0:02:57]} 4. Bf4 {[%clk 0:02:42]}  Nc6 {[%clk 0:02:57]} 5. c3 {[%clk 0:02:38]}  Bf5 {[%clk 0:02:56]} 6. Nf3 {[%clk 0:02:23]}  e6 {[%clk 0:02:55]} 7. Ne5 {[%clk 0:02:15]}  Nxe5 {[%clk 0:02:30]} 8. Bxe5 {[%clk 0:02:04]}  Ne7 {[%clk 0:02:30]} 9. Bb5+ {[%clk 0:01:56]}  Nc6 {[%clk 0:02:29]} 10. Qa4 {[%clk 0:01:56]}  Qb6 {[%clk 0:02:29]} 11. Nd2 {[%clk 0:01:20]}  a6 {[%clk 0:02:10]} 12. Bxc6+ {[%clk 0:01:20]}  Qxc6 {[%clk 0:02:10]} 13. Qb3 {[%clk 0:01:18]}  f6 {[%clk 0:01:50]} 14. Bg3 {[%clk 0:01:17]}  Bd3 {[%clk 0:01:30]} 15. f3 {[%clk 0:01:15]}  Bd6 {[%clk 0:01:27]} 16. Kf2 {[%clk 0:01:08]}  O-O {[%clk 0:01:25]} 17. Rhe1 {[%clk 0:01:08]}  b5 {[%clk 0:01:20]} 18. Re3 {[%clk 0:01:07]}  Bf5 {[%clk 0:01:17]} 19. Nf1 {[%clk 0:00:59]}  Rfe8 {[%clk 0:01:14]} 20. Rae1 {[%clk 0:00:59]}  Bf8 {[%clk 0:01:12]} 21. Kg1 {[%clk 0:00:51]}  a5 {[%clk 0:01:07]} 22. Bf2 {[%clk 0:00:45]}  a4 {[%clk 0:01:02]} 23. Qd1 {[%clk 0:00:45]}  b4 {[%clk 0:00:54]} 24. Ng3 {[%clk 0:00:41]}  Bg6 {[%clk 0:00:49]} 25. Ne2 {[%clk 0:00:36]}  a3 {[%clk 0:00:46]} 26. b3 {[%clk 0:00:33]}  Rac8 {[%clk 0:00:43]} 27. Qd2 {[%clk 0:00:30]}  Qb6 {[%clk 0:00:36]} 28. Rc1 {[%clk 0:00:26]}  bxc3 {[%clk 0:00:29]} 29. Nxc3 {[%clk 0:00:27]}  Bb4 {[%clk 0:00:27]} 30. Qe2 {[%clk 0:00:28]}  Qxd4 {[%clk 0:00:19]} 31. Rxe6 {[%clk 0:00:25]}  Qf4 {[%clk 0:00:17]} 32. Rxe8+ {[%clk 0:00:17]}  Rxe8 {[%clk 0:00:18]} 33. Qd1 {[%clk 0:00:16]}  Bf7 {[%clk 0:00:13]} 34. Rc2 {[%clk 0:00:09]}  Rd8 {[%clk 0:00:06]} 35. Ne2 {[%clk 0:00:09]}  Qe5 {[%clk 0:00:06]} 36. Nd4 {[%clk 0:00:09]}  Bd6 {[%clk 0:00:07]} 37. Bg3 {[%clk 0:00:09]}  Qe8 {[%clk 0:00:06]} 38. Bxd6 {[%clk 0:00:09]}  Rxd6 {[%clk 0:00:07]} 39. Re2 {[%clk 0:00:10]}  Qd7 {[%clk 0:00:06]} 40. Qd2 {[%clk 0:00:10]}  g6 {[%clk 0:00:05]} 41. Kf2 {[%clk 0:00:11]}  Kg7 {[%clk 0:00:06]} 42. Qe3 {[%clk 0:00:11]}  Ra6 {[%clk 0:00:04]} 43. Qe7 {[%clk 0:00:11]}  Rd6 {[%clk 0:00:05]} 44. Qxd7 {[%clk 0:00:11]}  Rxd7 {[%clk 0:00:06]} 45. Rc2 {[%clk 0:00:12]}  f5 {[%clk 0:00:06]} 46. Rc5 {[%clk 0:00:12]}  Ra7 {[%clk 0:00:05]} 47. g3 {[%clk 0:00:12]}  Kf6 {[%clk 0:00:04]} 48. f4 {[%clk 0:00:12]}  Ke7 {[%clk 0:00:05]} 49. Ke3 {[%clk 0:00:10]}  Kd6 {[%clk 0:00:05]} 50. Rc2 {[%clk 0:00:10]}  Kd7 {[%clk 0:00:05]} 51. Kd3 {[%clk 0:00:10]}  Rc7 {[%clk 0:00:05]} 52. Rxc7+ {[%clk 0:00:10]}  Kxc7 {[%clk 0:00:06]} 53. Nb5+ {[%clk 0:00:11]}  Kc6 {[%clk 0:00:06]} 54. Nxa3 {[%clk 0:00:12]}  Kc5 {[%clk 0:00:07]} 55. Nc2 {[%clk 0:00:13]}  Be8 {[%clk 0:00:07]} 56. a3 {[%clk 0:00:12]}  Bb5+ {[%clk 0:00:08]} 57. Kc3 {[%clk 0:00:13]}  Bf1 {[%clk 0:00:08]} 58. Nd4 {[%clk 0:00:13]}  Kd6 {[%clk 0:00:08]} 59. b4 {[%clk 0:00:13]}  Ba6 {[%clk 0:00:08]} 60. a4 {[%clk 0:00:13]}  Bc4 {[%clk 0:00:07]} 61. Nf3 {[%clk 0:00:13]}  h6 {[%clk 0:00:07]} 62. Kd4 {[%clk 0:00:13]}  g5 {[%clk 0:00:07]} 63. fxg5 {[%clk 0:00:14]}  hxg5 {[%clk 0:00:08]} 64. Nxg5 {[%clk 0:00:15]}  Bb3 {[%clk 0:00:08]} 65. a5 {[%clk 0:00:15]}  Bc4 {[%clk 0:00:08]} 66. Nh3 {[%clk 0:00:15]}  Kc6 {[%clk 0:00:07]} 67. Nf4 {[%clk 0:00:16]}  Kb5 {[%clk 0:00:07]} 68. Nxd5 {[%clk 0:00:16]}  Bf1 {[%clk 0:00:07]} 69. Ne3 {[%clk 0:00:16]}  Bh3 {[%clk 0:00:06]} 70. Nd5 {[%clk 0:00:16]}  Bg2 {[%clk 0:00:06]} 71. Ke5 {[%clk 0:00:16]}  Bh3 {[%clk 0:00:05]} 72. Kf4 {[%clk 0:00:11]}  Bg2 {[%clk 0:00:02]} 73. Ne3 {[%clk 0:00:11]}  Bh3 {[%clk 0:00:02]} 74. Nxf5 {[%clk 0:00:11]}  Kxb4 {[%clk 0:00:02]} 75. a6 {[%clk 0:00:11]}  Bg2 {[%clk 0:00:03]} 76. Ne3 {[%clk 0:00:11]}  Bh1 {[%clk 0:00:02]} 77. g4 {[%clk 0:00:10]}  Kb5 {[%clk 0:00:03]} 78. g5 {[%clk 0:00:11]}  Kb6 {[%clk 0:00:03]} 79. g6 {[%clk 0:00:11]} 1-0


[Site "https://www.chess.com"]

[Event "Titled Tuesday Blitz June 6 Early 2023"]
[White "Marcziter, Dmitrii"]
[Black "Jeet, Jain"]
[WhiteFideId "13900765"]
[BlackFideId "5073022"]
[WhiteElo "2162"]
[BlackElo "2067"]
[Result "1-0"]
[Round "10"]
[TimeControl "180+2"]
[Date "2023.06.06"]
[WhiteClock "0:00:18"]
[BlackClock "0:00:02"]
[Board "47"]

1. d4 {[%clk 0:03:00]}  c6 {[%clk 0:02:56]} 2. c4 {[%clk 0:03:00]}  d5 {[%clk 0:02:55]} 3. Nf3 {[%clk 0:03:00]}  Nf6 {[%clk 0:02:49]} 4. Nc3 {[%clk 0:03:00]}  e6 {[%clk 0:02:30]} 5. e3 {[%clk 0:02:59]}  Be7 {[%clk 0:01:36]} 6. Qc2 {[%clk 0:02:55]}  O-O {[%clk 0:01:33]} 7. g4 {[%clk 0:02:55]}  a6 {[%clk 0:01:04]} 8. g5 {[%clk 0:02:53]}  Nfd7 {[%clk 0:01:04]} 9. h4 {[%clk 0:02:50]}  dxc4 {[%clk 0:01:04]} 10. Bxc4 {[%clk 0:02:49]}  b5 {[%clk 0:01:04]} 11. Bd3 {[%clk 0:02:49]}  c5 {[%clk 0:01:05]} 12. Bxh7+ {[%clk 0:02:44]}  Kh8 {[%clk 0:01:04]} 13. Be4 {[%clk 0:02:41]}  Ra7 {[%clk 0:01:05]} 14. Qe2 {[%clk 0:02:32]}  f5 {[%clk 0:00:59]} 15. gxf6 {[%clk 0:02:16]}  Nxf6 {[%clk 0:00:58]} 16. Ne5 {[%clk 0:02:13]}  Kg8 {[%clk 0:00:53]} 17. Bg6 {[%clk 0:02:08]}  cxd4 {[%clk 0:00:51]} 18. exd4 {[%clk 0:02:06]}  Nbd7 {[%clk 0:00:45]} 19. Nc6 {[%clk 0:02:02]}  Qc7 {[%clk 0:00:29]} 20. Nxe7+ {[%clk 0:01:59]}  Kh8 {[%clk 0:00:30]} 21. Nxc8 {[%clk 0:01:59]}  Rxc8 {[%clk 0:00:28]} 22. Be3 {[%clk 0:01:55]}  b4 {[%clk 0:00:28]} 23. Ne4 {[%clk 0:01:52]}  Qb7 {[%clk 0:00:26]} 24. f3 {[%clk 0:01:42]}  b3 {[%clk 0:00:26]} 25. axb3 {[%clk 0:01:33]}  Qxb3 {[%clk 0:00:27]} 26. O-O {[%clk 0:01:26]}  Nd5 {[%clk 0:00:23]} 27. Nc3 {[%clk 0:01:17]}  Nxc3 {[%clk 0:00:20]} 28. bxc3 {[%clk 0:01:16]}  Rxc3 {[%clk 0:00:21]} 29. Rac1 {[%clk 0:01:04]}  Rac7 {[%clk 0:00:18]} 30. Rxc3 {[%clk 0:01:03]}  Rxc3 {[%clk 0:00:19]} 31. Bf4 {[%clk 0:00:59]}  Nf8 {[%clk 0:00:18]} 32. Be4 {[%clk 0:00:57]}  Qb4 {[%clk 0:00:18]} 33. Be5 {[%clk 0:00:55]}  Nd7 {[%clk 0:00:15]} 34. f4 {[%clk 0:00:43]}  Nxe5 {[%clk 0:00:01]} 35. Qh5+ {[%clk 0:00:39]}  Kg8 {[%clk 0:00:02]} 36. Qxe5 {[%clk 0:00:34]}  Rg3+ {[%clk 0:00:01]} 37. Kh2 {[%clk 0:00:28]}  Qb3 {[%clk 0:00:02]} 38. Bg2 {[%clk 0:00:19]}  Rg6 {[%clk 0:00:02]} 39. f5 {[%clk 0:00:18]} 1-0


[Site "https://www.chess.com"]

[Event "Titled Tuesday Blitz June 6 Early 2023"]
[White "Koshulyan, Egor A."]
[Black "Goffredo_Fofi"]
[WhiteFideId "24237000"]
[WhiteElo "2216"]
[BlackElo "2504"]
[Result "1-0"]
[Round "10"]
[TimeControl "180+2"]
[Date "2023.06.06"]
[WhiteClock "0:00:33"]
[BlackClock "0:00:05"]
[Board "48"]

1. e4 {[%clk 0:02:59]}  Nf6 {[%clk 0:02:59]} 2. e5 {[%clk 0:02:59]}  Nd5 {[%clk 0:03:00]} 3. c4 {[%clk 0:03:00]}  Nb6 {[%clk 0:03:00]} 4. c5 {[%clk 0:03:01]}  Nd5 {[%clk 0:03:00]} 5. Bc4 {[%clk 0:03:02]}  e6 {[%clk 0:03:00]} 6. d4 {[%clk 0:03:02]}  b6 {[%clk 0:02:55]} 7. cxb6 {[%clk 0:03:02]}  axb6 {[%clk 0:02:56]} 8. Nf3 {[%clk 0:03:02]}  Be7 {[%clk 0:02:47]} 9. O-O {[%clk 0:03:00]}  Ba6 {[%clk 0:02:46]} 10. Nbd2 {[%clk 0:02:56]}  Bxc4 {[%clk 0:02:44]} 11. Nxc4 {[%clk 0:02:57]}  O-O {[%clk 0:02:43]} 12. Ncd2 {[%clk 0:02:56]}  Nc6 {[%clk 0:02:35]} 13. Ne4 {[%clk 0:02:56]}  f5 {[%clk 0:02:33]} 14. exf6 {[%clk 0:02:55]}  Nxf6 {[%clk 0:02:33]} 15. Ng3 {[%clk 0:02:52]}  Ra5 {[%clk 0:02:10]} 16. Bd2 {[%clk 0:02:51]}  Bb4 {[%clk 0:02:10]} 17. Bg5 {[%clk 0:02:45]}  h6 {[%clk 0:02:02]} 18. Bc1 {[%clk 0:02:44]}  Bd6 {[%clk 0:01:49]} 19. a3 {[%clk 0:02:44]}  Rf7 {[%clk 0:01:31]} 20. Bd2 {[%clk 0:02:41]}  Rd5 {[%clk 0:01:31]} 21. Be3 {[%clk 0:02:41]}  Ng4 {[%clk 0:01:31]} 22. Qe2 {[%clk 0:02:31]}  h5 {[%clk 0:01:09]} 23. h3 {[%clk 0:02:07]}  Nxe3 {[%clk 0:01:09]} 24. Qxe3 {[%clk 0:02:08]}  Bf4 {[%clk 0:01:06]} 25. Qe4 {[%clk 0:02:07]}  Bd6 {[%clk 0:00:50]} 26. Rae1 {[%clk 0:02:01]}  Qf6 {[%clk 0:00:50]} 27. Rd1 {[%clk 0:01:58]}  h4 {[%clk 0:00:45]} 28. Ne2 {[%clk 0:01:44]}  g5 {[%clk 0:00:42]} 29. Nc3 {[%clk 0:01:40]}  Rf5 {[%clk 0:00:42]} 30. d5 {[%clk 0:01:40]}  Ne5 {[%clk 0:00:34]} 31. Nxe5 {[%clk 0:01:37]}  Rxe5 {[%clk 0:00:35]} 32. Qg4 {[%clk 0:01:35]}  Qf4 {[%clk 0:00:20]} 33. dxe6 {[%clk 0:01:31]}  dxe6 {[%clk 0:00:19]} 34. Qxf4 {[%clk 0:01:27]}  Rxf4 {[%clk 0:00:20]} 35. Rd3 {[%clk 0:01:25]}  Kf7 {[%clk 0:00:19]} 36. f3 {[%clk 0:01:18]}  Bc5+ {[%clk 0:00:19]} 37. Kh2 {[%clk 0:01:17]}  Rd4 {[%clk 0:00:18]} 38. Rfd1 {[%clk 0:01:15]}  Rxd3 {[%clk 0:00:17]} 39. Rxd3 {[%clk 0:01:15]}  Bd6 {[%clk 0:00:17]} 40. Kg1 {[%clk 0:01:14]}  Re1+ {[%clk 0:00:17]} 41. Kf2 {[%clk 0:01:15]}  Rc1 {[%clk 0:00:17]} 42. Ne4 {[%clk 0:01:14]}  Bf4 {[%clk 0:00:17]} 43. Rc3 {[%clk 0:01:05]}  Rxc3 {[%clk 0:00:13]} 44. Nxc3 {[%clk 0:01:06]}  Ke7 {[%clk 0:00:13]} 45. Ke2 {[%clk 0:01:05]}  Bc1 {[%clk 0:00:10]} 46. Nd1 {[%clk 0:01:05]}  Kd6 {[%clk 0:00:09]} 47. Kd3 {[%clk 0:01:02]}  Ke5 {[%clk 0:00:09]} 48. Kc2 {[%clk 0:01:02]}  Bf4 {[%clk 0:00:08]} 49. Nf2 {[%clk 0:00:59]}  Kd4 {[%clk 0:00:07]} 50. Ne4 {[%clk 0:00:56]}  Ke3 {[%clk 0:00:07]} 51. b4 {[%clk 0:00:56]}  Ke2 {[%clk 0:00:06]} 52. a4 {[%clk 0:00:56]}  Kf1 {[%clk 0:00:06]} 53. a5 {[%clk 0:00:48]}  bxa5 {[%clk 0:00:07]} 54. bxa5 {[%clk 0:00:49]}  Be3 {[%clk 0:00:07]} 55. Kd3 {[%clk 0:00:49]}  Ba7 {[%clk 0:00:07]} 56. Nxg5 {[%clk 0:00:49]}  Kxg2 {[%clk 0:00:08]} 57. Ke4 {[%clk 0:00:45]}  c5 {[%clk 0:00:08]} 58. f4 {[%clk 0:00:37]}  c4 {[%clk 0:00:06]} 59. a6 {[%clk 0:00:37]}  Kg3 {[%clk 0:00:06]} 60. Nxe6 {[%clk 0:00:31]}  Kxh3 {[%clk 0:00:06]} 61. f5 {[%clk 0:00:31]}  Kg3 {[%clk 0:00:06]} 62. Ng5 {[%clk 0:00:31]}  c3 {[%clk 0:00:03]} 63. Kd3 {[%clk 0:00:31]}  Kg4 {[%clk 0:00:04]} 64. f6 {[%clk 0:00:31]}  Kxg5 {[%clk 0:00:04]} 65. f7 {[%clk 0:00:32]}  h3 {[%clk 0:00:05]} 66. f8=Q {[%clk 0:00:32]}  h2 {[%clk 0:00:05]} 67. Qg7+ {[%clk 0:00:33]}  Kf4 {[%clk 0:00:05]} 68. Qc7+ {[%clk 0:00:32]}  Kf3 {[%clk 0:00:05]} 69. Qxh2 {[%clk 0:00:33]} 1-0


[Site "https://www.chess.com"]